bitfinex-derivatives/quotes_BTCF0:USTF0_20251030
["timestamp","ask_amount","ask_price","bid_price","bid_amount"]
[1761817285289,0.04586,110270.0,110260.0,1.00914714]
[1761817289986,0.40666,110270.0,110260.0,1.00914714]
[1761817291100,0.04586,110270.0,110260.0,1.00914714]
[1761817291301,0.08167492,110270.0,110260.0,0.68177714]
[1761817291598,0.44247492,110270.0,110260.0,0.80177714]
[1761817292100,0.44247492,110270.0,110260.0,0.48817714]
[1761817292295,0.44247492,110270.0,110260.0,0.80169714]
[1761817293891,0.44247492,110270.0,110260.0,0.68169714]
[1761817295694,0.44247492,110270.0,110260.0,0.81169714]
[1761817297001,0.44247492,110270.0,110260.0,0.99906714]
[1761817297303,0.08167492,110270.0,110260.0,0.99906714]
[1761817297505,0.08167492,110270.0,110260.0,0.68169714]
[1761817298094,0.08167492,110270.0,110260.0,0.81169714]
[1761817299300,0.44247492,110270.0,110260.0,0.81169714]
[1761817299495,0.44247492,110270.0,110260.0,0.60997568]
[1761817300288,0.44247492,110270.0,110260.0,0.35639]
[1761817300698,0.05767,110260.0,110250.0,0.05281437]
[1761817300903,0.44147492,110260.0,110250.0,0.05281437]
[1761817302797,0.75495492,110260.0,110250.0,0.00883437]
[1761817302998,0.75595492,110260.0,110250.0,0.001]
[1761817303203,0.75595492,110260.0,110250.0,0.00984866]
[1761817303702,0.75695492,110260.0,110250.0,0.05433866]
[1761817303906,0.75695492,110260.0,110250.0,0.04549]
[1761817304095,0.75695492,110260.0,110250.0,0.20838478]
[1761817305502,0.75695492,110260.0,110250.0,0.29908388]
[1761817307705,0.75695492,110260.0,110250.0,0.30815982]
[1761817308202,0.44347492,110260.0,110250.0,0.4710546]
[1761817308501,0.44347492,110260.0,110250.0,1.0812146]
[1761817308806,0.42047,110260.0,110250.0,1.0812146]
[1761817309105,0.42047,110260.0,110250.0,1.0745346]
[1761817309499,0.42047,110260.0,110250.0,0.62163982]
[1761817309699,0.44345571,110260.0,110250.0,0.62163982]
[1761817310306,0.44245571,110260.0,110250.0,0.62163982]
[1761817310813,0.44145571,110260.0,110250.0,0.62163982]
[1761817311105,0.44245571,110260.0,110250.0,0.62163982]
[1761817311610,0.44145571,110260.0,110250.0,0.62163982]
[1761817311813,0.44245571,110260.0,110250.0,0.7845346]
[1761817312206,0.44245571,110260.0,110250.0,0.62163982]
[1761817313103,0.44245571,110260.0,110250.0,0.91163982]
[1761817314310,0.44245571,110260.0,110250.0,0.62163982]
[1761817314515,0.44245571,110260.0,110250.0,0.45874504]
[1761817314701,0.44245571,110260.0,110250.0,0.62163982]
[1761817319419,0.44245571,110260.0,110250.0,0.76163982]
[1761817319815,0.44245571,110260.0,110250.0,0.9312146]
[1761817320319,0.44245571,110260.0,110250.0,1.0912146]
[1761817320320,0.001,110260.0,110250.0,1.0912146]
[1761817320822,0.05835,110260.0,110250.0,0.9145346]
[1761817321211,0.05835,110260.0,110250.0,0.7845346]
[1761817321412,0.05835,110260.0,110250.0,0.62163982]
[1761817321617,0.05835,110260.0,110250.0,0.73163982]
[1761817322222,0.05835,110260.0,110250.0,0.62163982]
[1761817323322,0.41915,110260.0,110250.0,0.62163982]
[1761817326134,0.44215218,110260.0,110250.0,0.62163982]
[1761817327730,0.44215218,110260.0,110250.0,0.45874504]
[1761817327929,0.44215218,110260.0,110250.0,0.86163982]
[1761817329027,0.44215218,110260.0,110250.0,0.62163982]
[1761817329229,0.44215218,110260.0,110250.0,0.30815982]
[1761817329429,0.44215218,110260.0,110250.0,0.21746072]
[1761817331135,0.75559218,110260.0,110250.0,0.03174594]
[1761817331337,0.05735,110250.0,110240.0,0.52182478]
[1761817331633,0.08035218,110250.0,110240.0,0.35909208]
[1761817332039,0.08035218,110250.0,110240.0,0.20838478]
[1761817333234,0.08035218,110250.0,110240.0,0.20938478]
[1761817333643,0.08035218,110250.0,110240.0,0.21851554]
[1761817334144,0.44115218,110250.0,110240.0,0.21851554]
[1761817335438,0.44115218,110250.0,110240.0,0.3815934]
[1761817335940,0.6041385,110250.0,110240.0,0.16398632]
[1761817336541,0.6041385,110250.0,110240.0,0.001]
[1761817336542,1.2268585,110250.0,110240.0,0.001]
[1761817336844,0.65100716,110250.0,110240.0,0.001]
[1761817337237,0.68328213,110250.0,110240.0,0.001]
[1761817337431,0.65100716,110250.0,110240.0,0.001]
[1761817338138,0.65100716,110250.0,110230.0,0.16298632]
[1761817338139,0.05837,110240.0,110230.0,0.16298632]
[1761817338343,0.9213185,110240.0,110230.0,0.16298632]
[1761817338537,0.9185985,110240.0,110230.0,0.16298632]
[1761817338743,0.9185985,110240.0,110230.0,0.20689632]
[1761817338943,0.9185985,110240.0,110230.0,0.18467632]
[1761817339242,0.9205985,110240.0,110230.0,0.18467632]
[1761817339438,0.9235985,110240.0,110230.0,0.18467632]
[1761817339944,0.9235985,110240.0,110230.0,0.16298632]
[1761817340246,0.9235985,110240.0,110230.0,0.20689632]
[1761817340730,0.76061218,110240.0,110230.0,0.20689632]
[1761817342048,0.76061218,110240.0,110230.0,0.16298632]
[1761817342342,0.9235985,110240.0,110230.0,0.16298632]
[1761817342745,0.9435985,110240.0,110230.0,0.16298632]
[1761817343646,1.5435985,110240.0,110230.0,0.16298632]
[1761817344547,1.2301585,110240.0,110230.0,0.20689632]
[1761817344741,1.5435985,110240.0,110230.0,0.20689632]
[1761817345044,1.5435985,110240.0,110230.0,0.16298632]
[1761817345748,0.05837,110230.0,110220.0,0.21590301]
[1761817345936,0.41917,110230.0,110220.0,0.21590301]
[1761817346135,0.41917,110230.0,110220.0,0.37888933]
[1761817347048,0.42017,110230.0,110220.0,0.46961313]
[1761817347641,0.42117,110230.0,110220.0,0.46961313]
[1761817348038,0.73461,110230.0,110220.0,0.46961313]
[1761817348447,0.75754387,110230.0,110220.0,0.46961313]
[1761817348840,0.75754387,110230.0,110220.0,0.37888933]
[1761817349449,0.44410387,110230.0,110220.0,0.37888933]
[1761817349651,0.75758387,110230.0,110220.0,0.37888933]
[1761817350253,0.73465,110230.0,110220.0,0.37888933]
[1761817350447,0.92056614,110230.0,110220.0,0.16298632]
[1761817351243,0.92056614,110230.0,110220.0,0.18602632]
[1761817351853,0.92056614,110230.0,110220.0,0.20786632]
[1761817352156,0.75757982,110230.0,110220.0,0.20786632]
[1761817352850,0.05821,110220.0,110210.0,1.50893357]
[1761817353052,0.44193719,110220.0,110210.0,1.67191989]
[1761817354153,0.60592351,110220.0,110210.0,1.76265189]
[1761817354358,0.60592351,110220.0,110210.0,0.30753189]
[1761817354555,0.60592351,110220.0,110210.0,0.29859832]
[1761817355652,0.60592351,110220.0,110210.0,0.135612]
[1761817355957,0.60592351,110220.0,110210.0,0.29859832]
[1761817356451,0.44293719,110220.0,110210.0,0.29859832]
[1761817357557,0.44293719,110220.0,110210.0,0.40859832]
[1761817357755,0.44293719,110220.0,110210.0,0.29859832]
[1761817358354,0.75641719,110220.0,110210.0,0.29859832]
[1761817360052,0.75641719,110220.0,110210.0,0.135612]
[1761817360245,0.75641719,110220.0,110210.0,0.29859832]
[1761817360960,0.44293719,110220.0,110210.0,0.29859832]
[1761817361151,0.75641719,110220.0,110210.0,0.40859832]
[1761817361352,0.75641719,110220.0,110210.0,0.25371832]
[1761817361553,0.75641719,110220.0,110210.0,0.27675832]
[1761817361756,0.91940351,110220.0,110210.0,0.29859832]
[1761817362171,0.75641719,110220.0,110210.0,0.29859832]
[1761817362958,0.91940351,110220.0,110210.0,0.090732]
[1761817363148,0.05703,110210.0,110200.0,0.30920743]
[1761817363347,0.41783,110210.0,110200.0,0.74219375]
[1761817363561,0.41783,110210.0,110200.0,2.24219375]
[1761817363964,0.05703,110210.0,110200.0,2.24219375]
[1761817364264,0.05703,110210.0,110200.0,2.24319375]
[1761817364466,0.08000493,110210.0,110200.0,2.24319375]
[1761817365652,0.02297493,110210.0,110200.0,3.02034007]
[1761817367263,0.02297493,110210.0,110200.0,2.42034007]
[1761817367654,0.02297493,110210.0,110200.0,2.41762007]
[1761817368150,0.02297493,110210.0,110200.0,2.42034007]
[1761817368653,0.73064,110220.0,110210.0,0.133742]
[1761817368852,0.44022007,110220.0,110210.0,0.29672832]
[1761817369162,0.75366007,110220.0,110210.0,0.29672832]
[1761817369364,0.44022007,110220.0,110210.0,0.29672832]
[1761817369554,0.75366007,110220.0,110210.0,0.29672832]
[1761817370155,0.75366007,110220.0,110210.0,0.42672832]
[1761817371364,0.75366007,110220.0,110210.0,0.58971464]
[1761817371657,0.44022007,110220.0,110210.0,0.58971464]
[1761817371863,0.38382007,110220.0,110210.0,0.79639464]
[1761817372065,0.02302007,110220.0,110210.0,1.15719464]
[1761817372367,0.39780866,110240.0,110230.0,0.04301]
[1761817372368,0.41965866,110240.0,110230.0,0.04301]
[1761817372563,0.40567818,110240.0,110230.0,0.78981824]
[1761817372864,0.42750818,110240.0,110230.0,0.59981824]
[1761817373258,0.44085818,110240.0,110230.0,0.29671192]
[1761817373461,0.44085818,110240.0,110230.0,0.41671192]
[1761817373672,0.44085818,110240.0,110230.0,0.63671192]
[1761817373963,0.44085818,110240.0,110230.0,0.79969824]
[1761817374264,0.44085818,110240.0,110230.0,1.11313824]
[1761817374466,0.42750818,110240.0,110230.0,1.12325824]
[1761817374668,0.38382818,110240.0,110230.0,1.12325824]
[1761817375060,0.40567818,110240.0,110230.0,1.12325824]
[1761817375259,0.42750818,110240.0,110230.0,1.12325824]
[1761817378668,0.44085818,110240.0,110230.0,0.1337256]
[1761817378868,0.44085818,110240.0,110230.0,0.29671192]
[1761817379171,0.44085818,110240.0,110230.0,0.57671192]
[1761817379659,0.44085818,110240.0,110230.0,0.73969824]
[1761817379873,0.44085818,110240.0,110230.0,0.8128543]
[1761817380965,0.44085818,110240.0,110230.0,0.36986798]
[1761817382162,0.6038445,110240.0,110230.0,0.04301]
[1761817382363,0.05703,110230.0,110220.0,0.29671702]
[1761817382562,0.05703,110230.0,110220.0,0.45970334]
[1761817382563,0.75421818,110230.0,110220.0,0.45970334]
[1761817383368,0.73119,110230.0,110220.0,0.45970644]
[1761817383756,0.73119,110230.0,110220.0,0.36898264]
[1761817383959,0.75418129,110230.0,110220.0,0.36898264]
[1761817385169,0.75418259,110230.0,110220.0,0.36898264]
[1761817385572,0.91716891,110230.0,110220.0,0.18496632]
[1761817385774,0.91716891,110230.0,110220.0,0.29672012]
[1761817385775,0.75518259,110230.0,110220.0,0.29672012]
[1761817386273,0.75518259,110230.0,110220.0,0.45970644]
[1761817387170,0.75518259,110230.0,110220.0,0.36898264]
[1761817388175,0.75518259,110230.0,110220.0,0.45970644]
[1761817388375,0.75518259,110230.0,110220.0,0.43867644]
[1761817388778,0.75518259,110230.0,110220.0,0.20599632]
[1761817388978,0.75518259,110230.0,110220.0,0.18496632]
[1761817389376,0.75518259,110230.0,110220.0,0.20599632]
[1761817390180,0.75518259,110230.0,110220.0,0.36898264]
[1761817390778,0.75518259,110230.0,110220.0,0.20599632]
[1761817392282,1.11598259,110230.0,110220.0,0.20599632]
[1761817392575,1.27896891,110230.0,110220.0,0.20599632]
[1761817395278,1.11598259,110230.0,110220.0,0.20606749]
[1761817399685,0.05907,110220.0,110210.0,0.29902799]
[1761817399888,0.44286259,110220.0,110210.0,0.29902799]
[1761817400586,0.44286259,110220.0,110210.0,0.20829749]
[1761817401088,0.44286259,110220.0,110200.0,2.08063]
[1761817401286,0.41987,110210.0,110200.0,1.76727]
[1761817401789,0.73323,110210.0,110200.0,1.76727]
[1761817402193,0.75621102,110210.0,110200.0,1.6765344]
[1761817402395,0.73323,110210.0,110200.0,1.6765344]
[1761817404789,0.75620584,110210.0,110200.0,1.6765344]
[1761817409597,0.75620584,110210.0,110200.0,1.7672747]
[1761817410195,0.44284584,110210.0,110200.0,1.7672747]
[1761817410497,0.75616584,110210.0,110200.0,1.7672747]
[1761817411897,0.44284584,110210.0,110200.0,1.7672747]
[1761817412095,0.75616584,110210.0,110200.0,1.7672747]
[1761817412395,0.75616584,110210.0,110200.0,1.7787147]
[1761817413792,0.42918584,110210.0,110200.0,2.0687147]
[1761817413990,0.02297584,110210.0,110200.0,2.3820347]
[1761817414186,0.38338,110220.0,110210.0,0.135972]
[1761817414396,0.42922502,110220.0,110210.0,0.45570949]
[1761817414594,0.42922502,110220.0,110210.0,0.30570949]
[1761817414798,0.44288502,110220.0,110210.0,0.30570949]
[1761817414990,0.44288502,110220.0,110210.0,0.29902949]
[1761817415998,0.44388502,110220.0,110210.0,0.135972]
[1761817416199,0.44388502,110220.0,110210.0,0.29902949]
[1761817418508,0.44388502,110220.0,110210.0,0.135972]
[1761817418802,0.44388502,110220.0,110210.0,0.29902949]
[1761817422208,0.44388502,110220.0,110210.0,0.135972]
[1761817422402,0.44388502,110220.0,110210.0,0.29902949]
[1761817424916,0.44388502,110220.0,110210.0,0.20829749]
[1761817425102,0.44388502,110220.0,110210.0,0.29902949]
[1761817429105,0.44388502,110220.0,110210.0,0.41902949]
[1761817430213,0.08308502,110220.0,110210.0,0.41902949]
[1761817430411,0.02401502,110220.0,110210.0,0.46876698]
[1761817430608,0.001,110220.0,110210.0,1.12228698]
[1761817433509,0.38366,110230.0,110220.0,0.1353438]
[1761817433815,0.40604,110230.0,110220.0,1.01469878]
[1761817434017,0.40604,110230.0,110220.0,0.85164129]
[1761817434315,0.40604,110230.0,110220.0,1.01469878]
[1761817434813,0.41905,110230.0,110220.0,1.01469878]
[1761817436319,0.04524,110230.0,110220.0,1.02481878]
[1761817436913,0.04624,110230.0,110220.0,1.02481878]
[1761817437709,0.41939,110240.0,110230.0,0.1353356]
[1761817438014,0.41939,110240.0,110230.0,0.58839309]
[1761817440415,0.42039,110240.0,110230.0,0.58839309]
[1761817441618,0.05959,110240.0,110230.0,0.58839309]
[1761817443321,0.04624,110240.0,110230.0,0.59576309]
[1761817444121,0.04624,110240.0,110230.0,0.66978997]
[1761817446219,0.001,110240.0,110230.0,0.67250997]
[1761817447006,0.001,110240.0,110230.0,1.03330997]
[1761817447208,0.73221,110260.0,110250.0,0.1353191]
[1761817447428,0.44207776,110260.0,110250.0,0.76143408]
[1761817447624,0.41905,110260.0,110250.0,0.76143408]
[1761817448326,0.05825,110260.0,110250.0,0.59837659]
[1761817449016,0.05825,110260.0,110250.0,0.95917659]
[1761817449224,0.05925,110260.0,110250.0,0.76143408]
[1761817449812,0.04724,110260.0,110250.0,1.12891408]
[1761817450315,0.04724,110260.0,110250.0,1.13163408]
[1761817450517,0.04724,110260.0,110250.0,1.12891408]
[1761817450716,0.04624,110260.0,110250.0,0.76811408]
[1761817451113,0.05825,110260.0,110250.0,0.76811408]
[1761817451423,0.05825,110260.0,110250.0,0.43837659]
[1761817452520,0.05825,110260.0,110250.0,0.63837659]
[1761817452719,0.04524,110260.0,110250.0,0.80811408]
[1761817452918,0.02286,110260.0,110250.0,0.80811408]
[1761817453819,0.04437,110260.0,110250.0,0.80811408]
[1761817454410,0.04437,110260.0,110250.0,0.4819991]
[1761817454614,0.04437,110260.0,110250.0,0.80811408]
[1761817457323,0.04437,110260.0,110250.0,0.80784284]
[1761817461028,0.04437,110260.0,110250.0,0.4819991]
[1761817461328,0.04437,110260.0,110250.0,0.80784284]
[1761817461626,0.05722,110260.0,110250.0,2.30784284]
[1761817463228,0.08019333,110260.0,110250.0,2.30784284]
[1761817465422,0.06734333,110260.0,110250.0,2.30784284]
[1761817471443,0.06734333,110260.0,110250.0,1.91824097]
[1761817471444,0.08019333,110260.0,110250.0,1.91824097]
[1761817471635,0.08019333,110260.0,110250.0,1.79824097]
[1761817471835,0.08019333,110260.0,110250.0,2.11124097]
[1761817472038,0.44099333,110260.0,110250.0,2.11124097]
[1761817472235,0.46519144,110260.0,110250.0,2.11124097]
[1761817472426,0.46519144,110260.0,110250.0,2.02054187]
[1761817472629,0.62811331,110260.0,110250.0,1.70754187]
[1761817472839,1.22811331,110260.0,110250.0,1.70754187]
[1761817473239,0.6039152,110260.0,110250.0,1.70754187]
[1761817473631,0.62811331,110260.0,110250.0,1.70754187]
[1761817473837,0.77819144,110260.0,110250.0,1.70754187]
[1761817474040,0.94111331,110260.0,110250.0,1.70754187]
[1761817477129,0.94111331,110260.0,110250.0,1.79824097]
[1761817477334,0.77819144,110260.0,110250.0,1.79824097]
[1761817477740,0.77819144,110260.0,110250.0,1.6353191]
[1761817477939,0.77819144,110260.0,110250.0,1.79824097]
[1761817478243,1.37819144,110260.0,110250.0,1.79824097]
[1761817479736,1.37819144,110260.0,110250.0,1.70754187]
[1761817480241,1.35399333,110260.0,110250.0,1.70754187]
[1761817480443,1.5169152,110260.0,110250.0,1.70754187]
[1761817482242,1.35399333,110260.0,110250.0,1.70754187]
[1761817483938,0.75399333,110260.0,110250.0,1.70754187]
[1761817485440,0.94111331,110260.0,110250.0,1.70754187]
[1761817486343,0.9169152,110260.0,110250.0,1.70754187]
[1761817488546,0.94111331,110260.0,110250.0,1.54462]
[1761817488946,0.94383331,110260.0,110250.0,1.54462]
[1761817489247,0.94111331,110260.0,110250.0,1.54462]
[1761817490345,0.94111331,110260.0,110250.0,0.04462]
[1761817491647,0.94111331,110260.0,110250.0,0.02312]
[1761817491850,0.05845,110250.0,110240.0,1.5]
[1761817492046,0.44222333,110250.0,110240.0,1.66292187]
[1761817492748,0.44222333,110250.0,110240.0,1.82584374]
[1761817493139,0.44222333,110250.0,110240.0,1.82684374]
[1761817493340,0.44222333,110250.0,110240.0,1.66392187]
[1761817496350,0.44222333,110250.0,110240.0,1.82684374]
[1761817498454,0.44222333,110250.0,110240.0,1.83352374]
[1761817498952,0.42876333,110250.0,110240.0,1.83352374]
[1761817499851,0.42876333,110250.0,110240.0,2.04423104]
[1761817500066,0.38377333,110250.0,110240.0,2.04423104]
[1761817501669,0.38377333,110250.0,110240.0,1.92423104]
[1761817501861,0.42876333,110250.0,110240.0,1.83352374]
[1761817502366,0.42876333,110250.0,110240.0,1.92423104]
[1761817502963,0.42876333,110250.0,110240.0,2.05423104]
[1761817503269,0.45296144,110250.0,110240.0,2.05423104]
[1761817503964,0.45296144,110250.0,110240.0,1.92423104]
[1761817505066,0.46642144,110250.0,110240.0,1.50768]
[1761817505265,0.46642144,110250.0,110240.0,2.03755104]
[1761817505464,0.45296144,110250.0,110240.0,2.04423104]
[1761817505772,0.46642144,110250.0,110240.0,2.04423104]
[1761817507368,0.46642144,110250.0,110240.0,1.91755104]
[1761817507573,0.46642144,110250.0,110240.0,1.5917073]
[1761817507875,0.46642144,110250.0,110240.0,1.91755104]
[1761817508669,0.45296144,110250.0,110240.0,1.7383873]
[1761817508971,0.45296144,110250.0,110240.0,1.91755104]
[1761817508972,0.46642144,110250.0,110240.0,1.91755104]
[1761817509868,0.46642144,110250.0,110240.0,1.75462917]
[1761817510269,0.46642144,110250.0,110240.0,1.91755104]
[1761817510676,0.46642144,110250.0,110240.0,1.92423104]
[1761817511979,0.45296144,110250.0,110240.0,1.92423104]
[1761817513277,0.42876333,110250.0,110240.0,1.92423104]
[1761817514282,0.44250333,110250.0,110240.0,1.97684187]
[1761817514477,0.6054252,110250.0,110240.0,1.97684187]
[1761817515077,0.44250333,110250.0,110240.0,2.23047104]
[1761817515779,0.42876333,110250.0,110240.0,2.35715104]
[1761817515979,0.40599333,110250.0,110240.0,0.90054104]
[1761817517780,0.02297333,110250.0,110240.0,0.90054104]
[1761817517982,0.77866942,110260.0,110250.0,0.1340891]
[1761817518275,0.77866942,110260.0,110250.0,0.29701097]
[1761817518977,0.43025942,110260.0,110250.0,0.42845097]
[1761817519280,0.42870131,110260.0,110250.0,0.42847083]
[1761817520384,0.40606131,110260.0,110250.0,0.42847083]
[1761817520582,0.42870131,110260.0,110250.0,0.42847083]
[1761817520778,0.06790131,110260.0,110250.0,0.42847083]
[1761817522074,0.02309131,110260.0,110250.0,0.81141256]
[1761817522279,0.02309131,110260.0,110250.0,0.64847083]
[1761817523188,0.02309131,110260.0,110250.0,0.81141256]
[1761817523377,0.02309131,110260.0,110250.0,0.64847083]
[1761817523977,0.02309131,110260.0,110250.0,0.81141256]
[1761817524684,0.02309131,110260.0,110250.0,1.17221256]
[1761817526083,0.40561,110270.0,110260.0,0.1442008]
[1761817526278,0.42868705,110270.0,110260.0,0.96002253]
[1761817526883,0.38387705,110270.0,110260.0,0.96002253]
[1761817527084,0.40604705,110270.0,110260.0,0.96002253]
[1761817527287,0.40704705,110270.0,110260.0,0.96002253]
[1761817527478,0.42968705,110270.0,110260.0,0.96002253]
[1761817528189,0.38587705,110270.0,110260.0,0.96002253]
[1761817528783,0.40804705,110270.0,110260.0,0.96002253]
[1761817529475,0.04724705,110270.0,110260.0,0.96002253]
[1761817529675,0.06988705,110270.0,110260.0,0.96002253]
[1761817530378,0.02507705,110270.0,110260.0,0.9692209]
[1761817530685,0.002,110270.0,110260.0,0.9692209]
[1761817531787,0.002,110270.0,110260.0,1.3300209]
[1761817532287,0.04681,110270.0,110260.0,1.3300209]
[1761817532683,0.02417,110270.0,110260.0,1.3300209]
[1761817533186,0.02317,110270.0,110260.0,1.3300209]
[1761817533588,0.001,110270.0,110260.0,1.3300209]
[1761817534684,0.001,110270.0,110260.0,1.3327409]
[1761817535086,0.73219,110290.0,110280.0,0.04339]
[1761817535287,0.75523153,110290.0,110280.0,0.04339]
[1761817535592,0.44239153,110290.0,110280.0,0.20633173]
[1761817536091,0.05855,110270.0,110260.0,0.82707237]
[1761817536281,0.05855,110270.0,110260.0,1.3300141]
[1761817536881,0.04481,110270.0,110260.0,1.3300141]
[1761817538488,0.02217,110270.0,110260.0,1.3300141]
[1761817538692,0.41935,110280.0,110270.0,0.1340733]
[1761817538988,0.44238427,110280.0,110270.0,0.29701503]
[1761817539689,0.06784427,110280.0,110270.0,0.42438503]
[1761817539882,0.06884427,110280.0,110270.0,0.42438503]
[1761817540191,0.06984427,110280.0,110270.0,0.42438503]
[1761817542187,0.06984427,110280.0,110270.0,1.00518503]
[1761817542385,0.002,110280.0,110270.0,1.00518503]
[1761817542584,0.002,110280.0,110270.0,1.07835801]
[1761817543290,0.002,110280.0,110270.0,0.71755801]
[1761817543792,0.001,110280.0,110270.0,1.07835801]
[1761817544479,0.001,110280.0,110270.0,1.08107801]
[1761817544679,0.001,110280.0,110270.0,1.07835801]
[1761817544983,0.41893,110300.0,110290.0,0.0445]
[1761817545184,0.44196692,110300.0,110290.0,0.35726]
[1761817546281,0.44196692,110300.0,110290.0,0.4479272]
[1761817546482,0.44496692,110300.0,110290.0,0.4479272]
[1761817546784,0.44696692,110300.0,110290.0,0.61086893]
[1761817546983,0.41160692,110300.0,110290.0,0.61086893]
[1761817547187,0.02803692,110300.0,110290.0,0.87230893]
[1761817547384,0.005,110300.0,110290.0,0.87230893]
[1761817547691,0.005,110300.0,110290.0,1.23310893]
[1761817547882,0.005,110300.0,110290.0,1.23582893]
[1761817548194,0.005,110300.0,110290.0,1.23310893]
[1761817548791,0.41857,110310.0,110300.0,0.1351606]
[1761817548993,0.41857,110310.0,110300.0,0.29810233]
[1761817549378,0.04439,110310.0,110300.0,0.43822233]
[1761817549777,0.41857,110310.0,110300.0,0.43822233]
[1761817549983,0.41857,110310.0,110300.0,0.29810233]
[1761817550190,0.41857,110310.0,110300.0,0.40810233]
[1761817550386,0.41857,110310.0,110300.0,0.29810233]
[1761817550782,0.40519,110310.0,110300.0,0.54822233]
[1761817550988,0.04439,110310.0,110300.0,0.54822233]
[1761817551386,0.04439,110310.0,110300.0,1.07196406]
[1761817551585,0.04439,110310.0,110300.0,0.54822233]
[1761817552786,0.37418,110320.0,110300.0,0.54822233]
[1761817552991,0.44157094,110320.0,110310.0,0.61081483]
[1761817554088,0.44157094,110320.0,110310.0,0.77375656]
[1761817554288,0.44157094,110320.0,110310.0,0.78112656]
[1761817554793,0.44157094,110320.0,110310.0,1.07112656]
[1761817554986,0.44257094,110320.0,110310.0,1.07112656]
[1761817555491,0.44357094,110320.0,110310.0,1.07112656]
[1761817555897,0.08277094,110320.0,110310.0,1.07112656]
[1761817556401,0.44357094,110320.0,110310.0,1.07112656]
[1761817556696,0.08277094,110320.0,110310.0,1.07112656]
[1761817557094,0.06939094,110320.0,110310.0,1.07112656]
[1761817557490,0.04777094,110320.0,110310.0,1.07112656]
[1761817557691,0.06939094,110320.0,110310.0,1.07112656]
[1761817557994,0.06939094,110320.0,110310.0,0.78112656]
[1761817558198,0.43019094,110320.0,110310.0,0.89112656]
[1761817559200,0.43019094,110320.0,110310.0,1.07112656]
[1761817560599,0.06939094,110320.0,110310.0,1.07112656]
[1761817560800,0.06939094,110320.0,110310.0,1.14528813]
[1761817561496,0.02500094,110320.0,110310.0,1.14528813]
[1761817561701,0.02500094,110320.0,110310.0,1.50608813]
[1761817562200,0.04777094,110320.0,110310.0,1.50608813]
[1761817562597,0.02500094,110320.0,110310.0,1.50608813]
[1761817562895,0.02500094,110320.0,110310.0,1.50880813]
[1761817562896,0.04777094,110320.0,110310.0,1.50880813]
[1761817563098,0.02500094,110320.0,110310.0,1.50608813]
[1761817563303,0.002,110320.0,110310.0,1.50880813]
[1761817565194,0.04639,110320.0,110310.0,1.50600813]
[1761817570901,0.05977,110320.0,110310.0,1.50600793]
[1761817571210,0.44356908,110320.0,110310.0,0.5942033]
[1761817571406,0.44356908,110320.0,110310.0,0.52004173]
[1761817575103,0.44356908,110320.0,110310.0,0.20744173]
[1761817575514,0.44356908,110320.0,110310.0,0.0445]
[1761817575813,0.44356908,110320.0,110310.0,0.20744173]
[1761817576805,0.44356908,110320.0,110310.0,0.0445]
[1761817577206,0.46776719,110320.0,110310.0,0.0445]
[1761817577909,0.46776719,110320.0,110310.0,0.20744173]
[1761817578810,0.05824,110300.0,110290.0,0.88239173]
[1761817579004,0.08123908,110300.0,110290.0,0.88239173]
[1761817579316,0.08123908,110300.0,110290.0,1.04508276]
[1761817579614,0.08123908,110300.0,110290.0,0.88226638]
[1761817579912,0.08123908,110300.0,110290.0,1.04508276]
[1761817580915,0.08123908,110300.0,110290.0,1.04608276]
[1761817582611,0.08123908,110300.0,110290.0,0.88326638]
[1761817583008,0.08123908,110300.0,110290.0,1.04508276]
[1761817583519,0.08123908,110300.0,110290.0,0.37168276]
[1761817585120,0.08123908,110300.0,110290.0,0.20886638]
[1761817585307,0.08123908,110300.0,110290.0,0.04605]
[1761817585511,0.75463908,110300.0,110290.0,0.20886638]
[1761817590415,0.08123908,110300.0,110290.0,0.1367194]
[1761817590719,0.40608,110300.0,110290.0,0.38312276]
[1761817590912,0.3608,110310.0,110290.0,0.47378896]
[1761817591117,0.44183167,110310.0,110300.0,0.37168276]
[1761817591911,0.44183167,110310.0,110300.0,0.48168276]
[1761817592418,0.08103167,110310.0,110300.0,0.48168276]
[1761817592721,0.44283167,110310.0,110300.0,0.48168276]
[1761817593321,0.44183167,110310.0,110300.0,0.48168276]
[1761817593616,0.04628,110310.0,110300.0,0.47246386]
[1761817593819,0.04628,110310.0,110300.0,0.78246386]
[1761817593820,0.02417,110310.0,110300.0,0.78246386]
[1761817594033,0.001,110310.0,110300.0,1.14326386]
[1761817594323,0.02317,110310.0,110300.0,1.14326386]
[1761817594620,0.04528,110310.0,110300.0,1.14326386]
[1761817595319,0.05824,110310.0,110300.0,0.04605]
[1761817595514,0.41904,110310.0,110300.0,0.37168276]
[1761817597324,0.41904,110310.0,110300.0,0.04605]
[1761817597525,0.41904,110310.0,110300.0,0.37168276]
[1761817600320,0.44183983,110310.0,110300.0,0.37168276]
[1761817605939,0.4418444,110310.0,110300.0,0.37168276]
[1761817609440,0.4418444,110310.0,110300.0,0.20886638]
[1761817609744,0.05782,110290.0,110280.0,0.61040858]
[1761817609945,0.05782,110290.0,110280.0,0.87040858]
[1761817610934,0.05782,110290.0,110280.0,1.03422496]
[1761817611836,0.04433,110290.0,110280.0,1.04090496]
[1761817612036,0.04433,110290.0,110280.0,1.04390496]
[1761817612444,0.04433,110290.0,110280.0,1.04290496]
[1761817612644,0.04433,110290.0,110280.0,1.04090496]
[1761817618938,0.04433,110290.0,110280.0,0.72830496]
[1761817619252,0.04433,110290.0,110280.0,1.04090496]
[1761817622350,0.04433,110290.0,110280.0,1.20372134]
[1761817622648,0.04433,110290.0,110280.0,1.40170496]
[1761817623051,0.02238,110290.0,110280.0,1.40170496]
[1761817623244,0.04433,110290.0,110280.0,1.0760722]
[1761817623443,0.04433,110290.0,110280.0,1.56452134]
[1761817623846,0.04433,110290.0,110280.0,1.56452674]
[1761817624053,0.41862,110300.0,110290.0,0.04432]
[1761817624253,0.42792287,110300.0,110290.0,0.53007276]
[1761817624549,0.42792287,110300.0,110290.0,0.62074206]
[1761817624847,0.42792287,110300.0,110290.0,0.53007276]
[1761817625453,0.40513,110300.0,110290.0,0.53007276]
[1761817625854,0.04433,110300.0,110290.0,0.75074186]
[1761817626053,0.02238,110300.0,110290.0,0.75074186]
[1761817627552,0.04433,110300.0,110290.0,0.75074186]
[1761817627752,0.04433,110300.0,110290.0,0.38007276]
[1761817628160,0.04433,110300.0,110290.0,0.49007276]
[1761817628548,0.04433,110300.0,110290.0,0.38007276]
[1761817628842,0.04433,110300.0,110290.0,0.62007276]
[1761817629358,0.42793608,110300.0,110290.0,0.62007276]
[1761817629550,0.44142608,110300.0,110290.0,0.20713638]
[1761817629751,0.44142608,110300.0,110290.0,0.36995276]
[1761817630958,0.44142608,110300.0,110290.0,0.20713638]
[1761817635161,0.91684246,110300.0,110290.0,0.20713638]